[Event "XII Paracin Festival 2019"]
[Site "Paracin"]
[Date "2019.07.10"]
[Round "7.5"]
[White "Djordjevic, Vuk"]
[Black "Svetushkin, Dmitry"]
[Result "0-1"]
[ECO "A45"]
[WhiteElo "2412"]
[BlackElo "2528"]
[Annotator "ChessBase"]
[PlyCount "108"]
[EventDate "2019.07.05"]
[EventType "swiss"]
[EventCountry "SRB"]
[SourceTitle "playchess.com"]
[Source "ChessBase"]
[SourceQuality "1"]
[TimeControl "5400+30"]

1. d4 {[%emt 0:01:04]} Nf6 {[%emt 0:00:30]} 2. Bg5 {[%emt 0:00:19]} e6 {[%emt 0:00:09]} 3. e4 {[%emt 0:00:27]} h6 {[%emt 0:00:12]} 4. Bxf6 {[%emt 0:00:15]} Qxf6 {[%emt 0:00:08]} 5. Nf3 {[%emt 0:04:54]} d6 {[%emt 0:04:16]} 6. Nc3 {[%emt 0:00:23]} Nd7 {[%emt 0:00:41]} 7. Qd2 {[%emt 0:00:44]} a6 {[%emt 0:00:17]} 8. O-O-O {[%emt 0:02:14]} Qe7 {[%emt 0:05:20]} 9. h4 {[%emt 0:02:14]} b5 {[%emt 0:11:55]} 10. h5 {[%emt 0:06:33]} c5 {[%emt 0:07:11]} 11. Kb1 {[%emt 0:18:12]} c4 {[%emt 0:02:53]} 12. g4 {[%emt 0:13:13]} Nb6 {[%emt 0:02:16]} 13. Re1 {[%emt 0:06:56]} Qc7 {[%emt 0:05:10]} 14. a3 {[%emt 0:05:32]} Bd7 {[%emt 0:06:12]} 15. d5 {[%emt 0:08:24]} e5 {[%emt 0:02:01]} 16. g5 {[%emt 0:02:05]} a5 {[%emt 0:03:15]} 17. Na2 {[%emt 0:05:02]} b4 {[%emt 0:02:49]} 18. Qe3 {[%emt 0:02:20]} c3 {[%emt 0:02:17]} 19. bxc3 {[%emt 0:01:42]} bxa3 {[%emt 0:03:09]} 20. Ka1 {[%emt 0:03:58]} Rb8 {[%emt 0:04:09]} 21. g6 {[%emt 0:09:41]} fxg6 {[%emt 0:03:24]} 22. hxg6 {[%emt 0:00:50]} Be7 {[%emt 0:03:10]} 23. Rb1 {[%emt 0:01:32]} Na4 {[%emt 0:00:43]} 24. Be2 {[%emt 0:00:51]} Rb2 {[%emt 0:02:17]} 25. c4 {[%emt 0:02:20]} Qc5 {[%emt 0:00:40]} 26. Qxc5 {[%emt 0:00:38]} Nxc5 {[%emt 0:00:06]} 27. Rxb2 {[%emt 0:00:31]} axb2+ {[%emt 0:00:05]} 28. Kxb2 {[%emt 0:00:02]} Nxe4 {[%emt 0:00:39]} 29. Nc3 {[%emt 0:00:23]} Nxf2 {[%emt 0:06:34]} 30. Rf1 {[%emt 0:00:01]} Ng4 {[%emt 0:05:41]} 31. Nd2 {[%emt 0:00:56]} Nf6 {[%emt 0:03:08]} 32. Nde4 {[%emt 0:01:08]} O-O {[%emt 0:01:26]} 33. c5 {[%emt 0:00:32]} Rb8+ {[%emt 0:03:02]} 34. Ka2 {[%emt 0:00:29]} Bh3 {[%emt 0:06:37]} 35. Rf2 {[%emt 0:00:00]} dxc5 {[%emt 0:00:00]} 36. Bc4 {[%emt 0:00:53]} Bd8 {[%emt 0:01:58]} 37. d6+ {[%emt 0:00:32]} Kh8 {[%emt 0:00:01]} 38. Nxf6 {[%emt 0:00:37]} gxf6 {[%emt 0:00:42]} 39. Rh2 {[%emt 0:00:29]} Bf5 {[%emt 0:00:22]} 40. Rxh6+ {[%emt 0:00:29]} Kg7 {[%emt 0:00:02]} 41. Rh7+ {[%emt 0:00:33]} Kxg6 {[%emt 0:00:02]} 42. Rh2 {[%emt 0:00:25]} Bg4 {[%emt 0:01:47]} 43. Nd5 {[%emt 0:00:26]} Kg7 {[%emt 0:02:09]} 44. Rg2 {[%emt 0:00:34]} f5 {[%emt 0:00:05]} 45. Be2 {[%emt 0:00:32]} Kf7 {[%emt 0:00:27]} 46. Bxg4 {[%emt 0:00:14]} fxg4 {[%emt 0:00:04]} 47. Rxg4 {[%emt 0:00:21]} Ke6 {[%emt 0:00:08]} 48. Nc3 {[%emt 0:00:50]} Kxd6 {[%emt 0:00:30]} 49. Rg6+ {[%emt 0:00:04]} Kd7 {[%emt 0:00:14]} 50. Ne4 {[%emt 0:00:39]} Be7 {[%emt 0:00:06]} 51. Ra6 {[%emt 0:00:13]} Rb4 {[%emt 0:00:38]} 52. Nc3 {[%emt 0:00:33]} Bd8 {[%emt 0:00:38]} 53. Rh6 {[%emt 0:01:07]} Rd4 {[%emt 0:02:23]} 54. Nb5 {[%emt 0:00:31]} Ra4+ {[%emt 0:00:04]} 0-1

[Event "XII Paracin Festival 2019"]
[Site "Paracin"]
[Date "2019.07.10"]
[Round "7.6"]
[White "Baglan, Esat"]
[Black "Vishnu Prasanna. V"]
[Result "1/2-1/2"]
[ECO "C78"]
[WhiteElo "2336"]
[BlackElo "2505"]
[Annotator "ChessBase"]
[PlyCount "81"]
[EventDate "2019.07.05"]
[EventType "swiss"]
[EventCountry "SRB"]
[SourceTitle "playchess.com"]
[Source "ChessBase"]
[SourceQuality "1"]
[TimeControl "5400+30"]

1. e4 {[%emt 0:00:58]} e5 {[%emt 0:00:00]} 2. Nf3 {[%emt 0:00:06]} Nc6 {[%emt 0:00:00]} 3. Bb5 {[%emt 0:00:48]} a6 {[%emt 0:00:00]} 4. Ba4 {[%emt 0:00:03]} Nf6 {[%emt 0:00:00]} 5. O-O {[%emt 0:00:07]} b5 {[%emt 0:00:08]} 6. Bb3 {[%emt 0:00:07]} Bb7 {[%emt 0:00:13]} 7. d3 {[%emt 0:03:04]} Be7 {[%emt 0:00:21]} 8. a4 {[%emt 0:02:41]} O-O {[%emt 0:02:08]} 9. Nc3 {[%emt 0:03:29]} b4 {[%emt 0:08:25]} 10. Ne2 {[%emt 0:13:25]} d5 {[%emt 0:01:30]} 11. exd5 {[%emt 0:00:39]} Nxd5 {[%emt 0:00:07]} 12. Ng3 {[%emt 0:01:32]} Qd7 {[%emt 0:14:55]} 13. Re1 {[%emt 0:03:46]} Rae8 {[%emt 0:00:53]} 14. Bd2 {[%emt 0:14:00]} Bc5 {[%emt 0:06:56]} 15. c3 {[%emt 0:20:50]} Ba7 {[%emt 0:09:15]} 16. a5 {[%emt 0:05:18]} bxc3 {[%emt 0:06:49]} 17. bxc3 {[%emt 0:01:50]} Nf4 {[%emt 0:01:33]} 18. Bxf4 {[%emt 0:02:43]} exf4 {[%emt 0:00:06]} 19. Ne4 {[%emt 0:01:10]} Re7 {[%emt 0:01:55]} 20. Neg5 {[%emt 0:08:43]} Rxe1+ {[%emt 0:02:28]} 21. Qxe1 {[%emt 0:00:14]} Nd8 {[%emt 0:11:35]} 22. Ne5 {[%emt 0:03:27]} Qf5 {[%emt 0:04:15]} 23. Nexf7 {[%emt 0:09:31]} Nxf7 {[%emt 0:00:09]} 24. Nxf7 {[%emt 0:00:05]} Bd5 {[%emt 0:00:11]} 25. Bxd5 {[%emt 0:00:13]} Qxd5 {[%emt 0:00:03]} 26. Ne5 {[%emt 0:00:06]} Re8 {[%emt 0:00:11]} 27. d4 {[%emt 0:00:05]} Bxd4 {[%emt 0:01:28]} 28. cxd4 Qxd4 {[%emt 0:00:04]} 29. Qd1 {[%emt 0:03:17]} Qxe5 {[%emt 0:03:54]} 30. h3 {[%emt 0:00:49]} h6 31. Qb3+ Kh8 {[%emt 0:00:37]} 32. Ra2 {[%emt 0:02:10]} c5 {[%emt 0:05:22]} 33. Qc4 {[%emt 0:00:39]} f3 {[%emt 0:01:29]} 34. Qxa6 {[%emt 0:00:04]} Qe1+ {[%emt 0:00:13]} 35. Kh2 {[%emt 0:00:09]} fxg2 {[%emt 0:06:38]} 36. Kxg2 {[%emt 0:00:35]} Re5 37. Qa8+ Kh7 {[%emt 0:00:38]} 38. Ra3 {[%emt 0:00:41]} c4 {[%emt 0:03:24]} 39. Qc6 Rg5+ {[%emt 0:02:45]} 40. Rg3 {[%emt 0:01:14]} Rxg3+ {[%emt 0:00:03]} 41. Kxg3 {[%emt 0:00:16]} 1/2-1/2

[Event "XII Paracin Festival 2019"]
[Site "Paracin"]
[Date "2019.07.10"]
[Round "7.8"]
[White "Ratkovic, Miloje"]
[Black "McPhillips, Joseph"]
[Result "1-0"]
[ECO "E97"]
[WhiteElo "2416"]
[BlackElo "2412"]
[Annotator "NA"]
[PlyCount "79"]
[EventDate "2019.07.05"]
[EventType "swiss"]
[EventCountry "SRB"]
[SourceTitle "playchess.com"]
[Source "ChessBase"]
[SourceQuality "1"]
[TimeControl "5400+30"]

1. Nf3 {[%emt 0:01:25]} Nf6 {[%emt 0:00:00]} 2. c4 {[%emt 0:00:10]} g6 {[%emt 0:00:00]} 3. Nc3 {[%emt 0:02:17]} Bg7 {[%emt 0:00:10]} 4. d4 {[%emt 0:00:16]} d6 {[%emt 0:00:48]} 5. e4 {[%emt 0:00:15]} O-O {[%emt 0:00:10]} 6. Be2 {[%emt 0:00:08]} e5 {[%emt 0:00:29]} 7. O-O {[%emt 0:00:22]} Nc6 {[%emt 0:01:41]} 8. d5 {[%emt 0:00:51]} Ne7 {[%emt 0:00:30]} 9. b4 {[%emt 0:00:08]} a5 {[%emt 0:03:22]} 10. bxa5 {[%emt 0:00:22]} Rxa5 {[%emt 0:03:04]} 11. a4 {[%emt 0:00:19]} c5 {[%emt 0:00:57]} 12. Ra3 {[%emt 0:07:28]} Ne8 {[%emt 0:01:22]} 13. Nb5 {[%emt 0:01:52]} Ra6 {[%emt 0:00:43]} 14. Bd2 {[%emt 0:09:18]} f5 {[%emt 0:00:20]} 15. exf5 {[%emt 0:03:00]} gxf5 {[%emt 0:00:54]} 16. g3 {[%emt 0:03:14]} e4 {[%emt 0:02:24]} 17. Ng5 {[%emt 0:04:23]} Ng6 {[%emt 0:01:01]} 18. f4 {[%emt 0:05:47]} exf3 {[%emt 0:01:28]} 19. Bxf3 {[%emt 0:11:24]} Nf6 {[%emt 0:12:58]} 20. Ne6 {[%emt 0:08:21]} Bxe6 {[%emt 0:01:27]} 21. dxe6 {[%emt 0:00:07]} Ne4 {[%emt 0:00:22]} 22. Bf4 {[%emt 0:07:39]} Rf6 {[%emt 0:33:21]} 23. Bxe4 {[%emt 0:05:52]} fxe4 {[%emt 0:03:15]} 24. Re3 {[%emt 0:01:04]} Nxf4 {[%emt 0:06:05]} 25. gxf4 {[%emt 0:00:56]} Rf5 {[%emt 0:23:30]} 26. Rxe4 {[%emt 0:01:24]} Qe7 {[%emt 0:00:30]} 27. Kh1 {[%emt 0:01:19]} h5 {[%emt 0:01:00]} 28. Rg1 {[%emt 0:01:06]} Kh8 {[%emt 0:01:17]} 29. Nc7 {[%emt 0:05:00]} Qxc7 {[%emt 0:00:38]} 30. e7 {[%emt 0:00:07]} Ra8 {[%emt 0:00:21]} 31. e8=Q+ {[%emt 0:00:12]} Rxe8 {[%emt 0:00:04]} 32. Rxe8+ {[%emt 0:00:09]} Kh7 {[%emt 0:00:07]} 33. Qf3 {[%emt 0:00:21]} Bd4 {[%emt 0:01:40]} 34. Qe4 {[%emt 0:00:50]} Qc6 {[%emt 0:00:20]} 35. Rg5 {[%emt 0:01:49]} Qxe4+ {[%emt 0:00:38]} 36. Rxe4 {[%emt 0:00:04]} Rf7 {[%emt 0:00:30]} 37. Rxh5+ {[%emt 0:00:22]} Kg6 {[%emt 0:00:03]} 38. Rd5 {[%emt 0:00:19]} Kf6 {[%emt 0:00:31]} 39. h4 {[%emt 0:01:42]} Bg1 {[%emt 0:00:59]} 40. Kxg1 {[%emt 0:00:13]} 1-0

[Event "XII Paracin Festival 2019"]
[Site "Paracin"]
[Date "2019.07.10"]
[Round "7.9"]
[White "Perunovic, Milos"]
[Black "Koksal, Ege"]
[Result "1-0"]
[ECO "C84"]
[WhiteElo "2597"]
[BlackElo "2368"]
[Annotator "ChessBase"]
[PlyCount "71"]
[EventDate "2019.07.05"]
[EventType "swiss"]
[EventCountry "SRB"]
[SourceTitle "playchess.com"]
[Source "ChessBase"]
[SourceQuality "1"]
[TimeControl "5400+30"]

1. e4 {[%emt 0:00:49]} e5 {[%emt 0:01:58]} 2. Nf3 {[%emt 0:00:17]} Nc6 {[%emt 0:00:02]} 3. Bb5 {[%emt 0:02:24]} a6 {[%emt 0:00:02]} 4. Ba4 {[%emt 0:00:10]} Nf6 {[%emt 0:00:05]} 5. O-O {[%emt 0:00:11]} Be7 {[%emt 0:00:08]} 6. d3 {[%emt 0:01:58]} b5 {[%emt 0:04:36]} 7. Bb3 {[%emt 0:00:14]} d6 {[%emt 0:00:02]} 8. a3 {[%emt 0:00:30]} O-O {[%emt 0:03:41]} 9. Nc3 {[%emt 0:00:24]} Bg4 {[%emt 0:01:19]} 10. Be3 {[%emt 0:01:02]} Nd4 {[%emt 0:00:05]} 11. Bxd4 {[%emt 0:00:09]} exd4 {[%emt 0:00:02]} 12. Nd5 {[%emt 0:00:14]} c6 {[%emt 0:00:53]} 13. h3 {[%emt 0:15:31]} Bxf3 {[%emt 0:27:30]} 14. Nxe7+ {[%emt 0:05:14]} Qxe7 {[%emt 0:00:06]} 15. Qxf3 {[%emt 0:00:07]} Nd7 {[%emt 0:00:48]} 16. Qg3 {[%emt 0:01:48]} Nc5 {[%emt 0:04:22]} 17. Ba2 {[%emt 0:00:57]} Na4 {[%emt 0:01:46]} 18. Rab1 {[%emt 0:00:07]} c5 {[%emt 0:00:09]} 19. f4 {[%emt 0:00:58]} Rad8 {[%emt 0:02:39]} 20. Qf2 {[%emt 0:09:00]} Kh8 {[%emt 0:00:57]} 21. Bb3 {[%emt 0:09:40]} Nb6 {[%emt 0:01:08]} 22. Rbe1 {[%emt 0:07:39]} Qd7 {[%emt 0:02:29]} 23. Ba2 {[%emt 0:08:24]} Na4 {[%emt 0:01:54]} 24. e5 {[%emt 0:01:08]} Qe7 {[%emt 0:18:26]} 25. b4 {[%emt 0:07:05]} cxb4 {[%emt 0:01:08]} 26. axb4 {[%emt 0:06:16]} Nc3 {[%emt 0:04:57]} 27. Bb3 {[%emt 0:00:13]} dxe5 {[%emt 0:00:40]} 28. fxe5 {[%emt 0:00:16]} Qxb4 {[%emt 0:02:52]} 29. Bxf7 {[%emt 0:00:27]} Nd5 {[%emt 0:01:52]} 30. e6 {[%emt 0:04:07]} Ne7 {[%emt 0:04:42]} 31. Qh4 {[%emt 0:03:21]} a5 {[%emt 0:06:22]} 32. Re5 {[%emt 0:01:24]} Rd5 {[%emt 0:03:10]} 33. Rxd5 {[%emt 0:00:06]} Nxd5 {[%emt 0:00:01]} 34. Rf5 {[%emt 0:00:11]} Nf6 {[%emt 0:04:35]} 35. Rxf6 {[%emt 0:00:25]} Qe7 {[%emt 0:00:03]} 36. Rh6 {[%emt 0:00:42]} 1-0

[Event "XII Paracin Festival 2019"]
[Site "Paracin"]
[Date "2019.07.10"]
[Round "7.10"]
[White "Liu, Zhaoqi"]
[Black "Sanal, Vahap"]
[Result "0-1"]
[ECO "B14"]
[WhiteElo "2386"]
[BlackElo "2520"]
[Annotator "ChessBase"]
[PlyCount "94"]
[EventDate "2019.07.05"]
[EventType "swiss"]
[EventCountry "SRB"]
[SourceTitle "playchess.com"]
[Source "ChessBase"]
[SourceQuality "1"]
[TimeControl "5400+30"]

1. c4 {[%emt 0:01:59]} c6 {[%emt 0:00:00]} 2. e4 {[%emt 0:00:21]} d5 {[%emt 0:00:00]} 3. exd5 {[%emt 0:00:10]} cxd5 {[%emt 0:00:00]} 4. d4 {[%emt 0:00:04]} Nf6 {[%emt 0:00:13]} 5. Nc3 {[%emt 0:00:09]} e6 {[%emt 0:00:44]} 6. Nf3 {[%emt 0:00:38]} Be7 {[%emt 0:00:14]} 7. Bd3 {[%emt 0:03:36]} O-O {[%emt 0:00:40]} 8. cxd5 {[%emt 0:00:46]} exd5 {[%emt 0:01:10]} 9. h3 {[%emt 0:03:43]} Nc6 {[%emt 0:00:28]} 10. O-O {[%emt 0:00:12]} h6 {[%emt 0:04:53]} 11. Bf4 {[%emt 0:08:03]} Bd6 {[%emt 0:06:07]} 12. Be5 {[%emt 0:10:33]} Be6 {[%emt 0:06:43]} 13. Rc1 {[%emt 0:04:47]} Rc8 {[%emt 0:19:42]} 14. Bb1 {[%emt 0:04:57]} Re8 {[%emt 0:05:21]} 15. Re1 {[%emt 0:02:04]} Bf8 {[%emt 0:02:42]} 16. a3 {[%emt 0:22:17]} Nd7 {[%emt 0:05:15]} 17. Bg3 {[%emt 0:02:53]} g6 {[%emt 0:01:47]} 18. Ne2 {[%emt 0:01:30]} Bg7 {[%emt 0:00:45]} 19. Nf4 {[%emt 0:00:55]} Nf8 {[%emt 0:00:19]} 20. Ne5 {[%emt 0:02:08]} Qb6 {[%emt 0:09:42]} 21. Nxe6 {[%emt 0:09:05]} Rxe6 {[%emt 0:01:33]} 22. Ba2 {[%emt 0:01:01]} Rd8 {[%emt 0:01:14]} 23. Qf3 {[%emt 0:02:24]} Rf6 {[%emt 0:01:14]} 24. Qe3 {[%emt 0:07:16]} Nxd4 {[%emt 0:06:20]} 25. Red1 {[%emt 0:01:38]} Nfe6 {[%emt 0:10:17]} 26. b4 {[%emt 0:00:45]} Rf5 {[%emt 0:04:34]} 27. Bb1 {[%emt 0:01:30]} Rg5 {[%emt 0:00:36]} 28. Kh2 {[%emt 0:01:12]} Bxe5 {[%emt 0:07:10]} 29. Bxe5 {[%emt 0:00:02]} Nf3+ {[%emt 0:00:24]} 30. Qxf3 {[%emt 0:05:05]} Rxe5 {[%emt 0:00:03]} 31. Rd3 {[%emt 0:02:45]} Rf5 {[%emt 0:00:51]} 32. Qe3 {[%emt 0:00:02]} Rxf2 {[%emt 0:00:52]} 33. Qxh6 {[%emt 0:00:12]} Nf4 {[%emt 0:01:18]} 34. Rg3 {[%emt 0:00:09]} Qd6 {[%emt 0:00:28]} 35. Re1 {[%emt 0:00:52]} Re2 {[%emt 0:01:57]} 36. Bxg6 {[%emt 0:01:45]} fxg6 {[%emt 0:00:15]} 37. Rf1 {[%emt 0:00:00]} Nh5 {[%emt 0:01:14]} 38. Qxg6+ {[%emt 0:00:32]} Qxg6 {[%emt 0:00:02]} 39. Rxg6+ {[%emt 0:00:04]} Ng7 {[%emt 0:00:08]} 40. h4 {[%emt 0:00:24]} d4 {[%emt 0:00:12]} 41. h5 {[%emt 0:00:15]} Re6 {[%emt 0:00:28]} 42. Rf2 {[%emt 0:01:44]} Rxg6 {[%emt 0:00:10]} 43. hxg6 {[%emt 0:00:02]} d3 {[%emt 0:00:21]} 44. Rd2 {[%emt 0:00:03]} Nh5 {[%emt 0:00:05]} 45. g4 {[%emt 0:00:31]} Nf6 {[%emt 0:00:04]} 46. Kg2 {[%emt 0:00:03]} Ne4 {[%emt 0:00:04]} 47. Rd1 {[%emt 0:00:39]} d2 {[%emt 0:00:30]} 0-1

[Event "XII Paracin Festival 2019"]
[Site "Paracin"]
[Date "2019.07.10"]
[Round "7.11"]
[White "Martic, Ivan"]
[Black "Tan, Justin"]
[Result "0-1"]
[ECO "E04"]
[WhiteElo "2392"]
[BlackElo "2513"]
[Annotator "ChessBase"]
[PlyCount "70"]
[EventDate "2019.07.05"]
[EventType "swiss"]
[EventCountry "SRB"]
[SourceTitle "playchess.com"]
[Source "ChessBase"]
[SourceQuality "1"]
[TimeControl "5400+30"]

1. d4 {[%emt 0:00:00]} Nf6 {[%emt 0:01:38]} 2. c4 {[%emt 0:00:00]} e6 {[%emt 0:00:05]} 3. g3 {[%emt 0:00:00]} d5 {[%emt 0:01:18]} 4. Nf3 {[%emt 0:00:14]} dxc4 {[%emt 0:00:20]} 5. Bg2 {[%emt 0:01:49]} a6 {[%emt 0:00:07]} 6. O-O {[%emt 0:02:15]} Nc6 {[%emt 0:00:25]} 7. Nc3 {[%emt 0:04:14]} Rb8 {[%emt 0:03:03]} 8. e4 {[%emt 0:00:47]} b5 {[%emt 0:02:25]} 9. d5 {[%emt 0:11:42]} Nb4 {[%emt 0:00:48]} 10. Ne5 {[%emt 0:10:10]} Bd6 {[%emt 0:26:09]} 11. f4 {[%emt 0:03:03]} Bc5+ {[%emt 0:01:48]} 12. Kh1 {[%emt 0:01:33]} O-O {[%emt 0:09:57]} 13. a3 {[%emt 0:02:53]} Nd3 {[%emt 0:00:02]} 14. Nxd3 {[%emt 0:09:26]} cxd3 {[%emt 0:00:01]} 15. Qxd3 {[%emt 0:02:50]} exd5 {[%emt 0:01:00]} 16. Nxd5 {[%emt 0:02:28]} Nxd5 {[%emt 0:00:13]} 17. exd5 {[%emt 0:00:47]} Qf6 {[%emt 0:00:55]} 18. f5 {[%emt 0:02:21]} Re8 {[%emt 0:01:11]} 19. g4 {[%emt 0:08:59]} Bb7 {[%emt 0:00:48]} 20. Qc2 {[%emt 0:08:37]} Qd4 {[%emt 0:03:16]} 21. Bf4 {[%emt 0:01:46]} Qxd5 {[%emt 0:08:07]} 22. Rad1 {[%emt 0:05:14]} Qxg2+ {[%emt 0:00:15]} 23. Qxg2 {[%emt 0:00:06]} Bxg2+ {[%emt 0:00:02]} 24. Kxg2 {[%emt 0:00:06]} Re2+ {[%emt 0:00:52]} 25. Kf3 {[%emt 0:01:05]} Rxb2 {[%emt 0:00:53]} 26. Bxc7 {[%emt 0:03:31]} Rc8 {[%emt 0:01:36]} 27. Rd7 {[%emt 0:02:56]} Bxa3 {[%emt 0:04:25]} 28. g5 {[%emt 0:03:54]} Rc2 {[%emt 0:02:46]} 29. Be5 {[%emt 0:01:00]} Re8 {[%emt 0:00:38]} 30. Bd4 {[%emt 0:02:56]} Rd2 {[%emt 0:01:24]} 31. Ra1 {[%emt 0:06:19]} Bc5 {[%emt 0:01:34]} 32. g6 {[%emt 0:00:45]} Rd3+ {[%emt 0:03:36]} 33. Kg2 {[%emt 0:00:21]} f6 {[%emt 0:04:39]} 34. Rc7 {[%emt 0:02:17]} Bxd4 {[%emt 0:00:12]} 35. Re1 {[%emt 0:00:14]} Be5 {[%emt 0:01:56]} 0-1

[Event "XII Paracin Festival 2019"]
[Site "Paracin"]
[Date "2019.07.10"]
[Round "7.12"]
[White "Nie, Xinyang"]
[Black "Asadli, Vugar"]
[Result "0-1"]
[ECO "D70"]
[WhiteElo "2375"]
[BlackElo "2502"]
[Annotator "ChessBase"]
[PlyCount "64"]
[EventDate "2019.07.05"]
[EventType "swiss"]
[EventCountry "SRB"]
[SourceTitle "playchess.com"]
[Source "ChessBase"]
[SourceQuality "1"]
[TimeControl "5400+30"]

1. d4 {[%emt 0:00:00]} Nf6 {[%emt 0:05:22]} 2. c4 {[%emt 0:00:00]} g6 {[%emt 0:00:22]} 3. Nf3 {[%emt 0:00:00]} Bg7 {[%emt 0:00:19]} 4. g3 {[%emt 0:00:00]} O-O {[%emt 0:00:37]} 5. Bg2 {[%emt 0:00:00]} d6 {[%emt 0:00:32]} 6. O-O {[%emt 0:00:00]} Bf5 {[%emt 0:00:03]} 7. Nh4 {[%emt 0:02:53]} Bc8 {[%emt 0:00:14]} 8. Nf3 {[%emt 0:00:04]} Bf5 {[%emt 0:04:43]} 9. Nc3 {[%emt 0:04:36]} Ne4 {[%emt 0:02:25]} 10. Nh4 {[%emt 0:04:29]} Nxc3 {[%emt 0:01:06]} 11. bxc3 {[%emt 0:00:03]} Bc8 {[%emt 0:00:17]} 12. f4 {[%emt 0:01:59]} f5 {[%emt 0:20:26]} 13. e4 {[%emt 0:01:46]} fxe4 {[%emt 0:01:52]} 14. Bxe4 {[%emt 0:00:05]} e6 {[%emt 0:00:16]} 15. Qf3 {[%emt 0:01:39]} Nc6 {[%emt 0:02:19]} 16. Bxc6 {[%emt 0:02:44]} bxc6 {[%emt 0:00:04]} 17. Qxc6 {[%emt 0:00:04]} Rb8 {[%emt 0:02:06]} 18. Qe4 {[%emt 0:05:52]} Qd7 {[%emt 0:02:02]} 19. Nf3 {[%emt 0:13:33]} Ba6 {[%emt 0:08:23]} 20. Qe2 {[%emt 0:00:29]} Qc6 {[%emt 0:07:11]} 21. Qxe6+ {[%emt 0:08:41]} Kh8 {[%emt 0:01:23]} 22. Ng5 {[%emt 0:00:17]} Bxc4 {[%emt 0:02:24]} 23. Qh3 {[%emt 0:00:04]} h6 {[%emt 0:00:22]} 24. Re1 {[%emt 0:00:35]} Ba6 {[%emt 0:09:33]} 25. Bd2 {[%emt 0:00:23]} Rb2 {[%emt 0:00:34]} 26. Rad1 {[%emt 0:00:41]} Bb7 {[%emt 0:01:58]} 27. a4 {[%emt 0:18:37]} a5 {[%emt 0:01:08]} 28. Kf1 {[%emt 0:04:50]} Qd5 29. Ne4 {[%emt 0:00:05]} Re8 {[%emt 0:02:47]} 30. Nf2 {[%emt 0:00:22]} Rxe1+ {[%emt 0:00:28]} 31. Kxe1 {[%emt 0:00:30]} Ba6 {[%emt 0:00:30]} 32. Bc1 {[%emt 0:08:44]} Qf3 0-1

[Event "XII Paracin Festival 2019"]
[Site "Paracin"]
[Date "2019.07.10"]
[Round "7.13"]
[White "Stojanovic, Mihajlo"]
[Black "Rabrenovic, Vladan"]
[Result "1-0"]
[ECO "D54"]
[WhiteElo "2483"]
[BlackElo "2326"]
[Annotator "ChessBase"]
[PlyCount "89"]
[EventDate "2019.07.05"]
[EventType "swiss"]
[EventCountry "SRB"]
[SourceTitle "playchess.com"]
[Source "ChessBase"]
[SourceQuality "1"]
[TimeControl "5400+30"]

1. d4 {[%emt 0:00:00]} d5 {[%emt 0:03:07]} 2. c4 {[%emt 0:00:00]} e6 {[%emt 0:00:07]} 3. Nc3 {[%emt 0:00:02]} Nf6 {[%emt 0:00:05]} 4. Bg5 {[%emt 0:00:13]} Be7 {[%emt 0:00:08]} 5. e3 {[%emt 0:00:06]} O-O {[%emt 0:00:12]} 6. Rc1 {[%emt 0:00:06]} h6 {[%emt 0:00:49]} 7. Bh4 {[%emt 0:00:08]} Ne4 {[%emt 0:12:37]} 8. Bxe7 {[%emt 0:00:14]} Qxe7 {[%emt 0:00:11]} 9. cxd5 {[%emt 0:00:15]} Nxc3 {[%emt 0:00:07]} 10. Rxc3 {[%emt 0:00:11]} exd5 {[%emt 0:00:07]} 11. Bd3 {[%emt 0:00:42]} c6 {[%emt 0:03:09]} 12. Ne2 {[%emt 0:18:21]} Nd7 {[%emt 0:02:14]} 13. Bb1 {[%emt 0:01:57]} Nf6 {[%emt 0:07:23]} 14. f3 {[%emt 0:01:52]} Re8 {[%emt 0:05:12]} 15. O-O {[%emt 0:06:47]} Bd7 {[%emt 0:04:44]} 16. Ng3 {[%emt 0:10:38]} h5 {[%emt 0:07:14]} 17. Qc2 {[%emt 0:08:26]} g6 {[%emt 0:01:21]} 18. Qf2 {[%emt 0:00:07]} Rf8 {[%emt 0:15:21]} 19. Re1 {[%emt 0:10:55]} Rae8 {[%emt 0:10:01]} 20. a3 {[%emt 0:09:00]} Qd6 {[%emt 0:01:32]} 21. h3 Qe7 {[%emt 0:10:30]} 22. Nf1 {[%emt 0:10:20]} Nh7 {[%emt 0:01:00]} 23. e4 {[%emt 0:00:48]} f5 {[%emt 0:06:54]} 24. e5 {[%emt 0:00:35]} Ng5 {[%emt 0:00:15]} 25. Nd2 {[%emt 0:06:13]} Kg7 {[%emt 0:00:48]} 26. h4 {[%emt 0:02:13]} Ne6 {[%emt 0:00:20]} 27. f4 {[%emt 0:00:53]} a5 {[%emt 0:00:26]} 28. Kf1 {[%emt 0:07:28]} b6 {[%emt 0:00:20]} 29. Ba2 {[%emt 0:00:42]} c5 {[%emt 0:01:59]} 30. dxc5 {[%emt 0:02:13]} d4 {[%emt 0:00:01]} 31. Rcc1 {[%emt 0:01:13]} bxc5 {[%emt 0:00:11]} 32. Kg1 {[%emt 0:00:14]} Rb8 {[%emt 0:02:50]} 33. Nc4 {[%emt 0:00:04]} a4 {[%emt 0:00:08]} 34. Nd6 {[%emt 0:00:28]} Rb3 {[%emt 0:04:11]} 35. Bxb3 {[%emt 0:01:25]} axb3 {[%emt 0:00:01]} 36. Rc4 {[%emt 0:00:22]} Bc6 {[%emt 0:00:07]} 37. Rec1 {[%emt 0:00:31]} Be4 {[%emt 0:01:35]} 38. g3 {[%emt 0:01:12]} Rd8 {[%emt 0:00:20]} 39. Rxc5 {[%emt 0:00:37]} Nxc5 {[%emt 0:00:04]} 40. Rxc5 {[%emt 0:00:05]} d3 {[%emt 0:01:32]} 41. Qd4 {[%emt 0:01:19]} Kh6 {[%emt 0:00:01]} 42. Nf7+ {[%emt 0:00:39]} Qxf7 {[%emt 0:00:09]} 43. Qxd8 {[%emt 0:00:04]} d2 {[%emt 0:01:17]} 44. Qxd2 {[%emt 0:00:08]} Ba8 {[%emt 0:00:35]} 45. Qd8 {[%emt 0:00:25]} 1-0

[Event "XII Paracin Festival 2019"]
[Site "Paracin"]
[Date "2019.07.10"]
[Round "7.14"]
[White "Stankovic, Milos"]
[Black "Franklin, Samuel G A"]
[Result "1/2-1/2"]
[ECO "C68"]
[WhiteElo "2462"]
[BlackElo "2339"]
[Annotator "ChessBase"]
[PlyCount "53"]
[EventDate "2019.07.05"]
[EventType "swiss"]
[EventCountry "SRB"]
[SourceTitle "playchess.com"]
[Source "ChessBase"]
[SourceQuality "1"]
[TimeControl "5400+30"]

1. e4 {[%emt 0:00:00]} e5 {[%emt 0:02:19]} 2. Nf3 {[%emt 0:00:09]} Nc6 {[%emt 0:00:08]} 3. Bb5 {[%emt 0:00:32]} a6 {[%emt 0:00:22]} 4. Bxc6 {[%emt 0:00:27]} dxc6 {[%emt 0:00:12]} 5. O-O {[%emt 0:01:31]} Bg4 {[%emt 0:00:45]} 6. h3 {[%emt 0:02:22]} h5 {[%emt 0:00:39]} 7. d3 {[%emt 0:00:38]} Qf6 {[%emt 0:01:17]} 8. Nbd2 {[%emt 0:01:26]} g5 {[%emt 0:01:56]} 9. Nc4 {[%emt 0:01:01]} Bxf3 {[%emt 0:00:48]} 10. Qxf3 {[%emt 0:00:29]} Qxf3 {[%emt 0:00:06]} 11. gxf3 {[%emt 0:00:25]} f6 {[%emt 0:00:28]} 12. h4 {[%emt 0:01:27]} gxh4 {[%emt 0:00:57]} 13. f4 {[%emt 0:00:28]} b5 {[%emt 0:13:18]} 14. Ne3 {[%emt 0:01:17]} exf4 {[%emt 0:08:41]} 15. Nf5 {[%emt 0:05:32]} Nh6 {[%emt 0:13:53]} 16. Nxh6 {[%emt 0:11:17]} Bxh6 {[%emt 0:00:34]} 17. Kg2 {[%emt 0:00:07]} Rg8+ {[%emt 0:02:41]} 18. Kf3 {[%emt 0:00:38]} Rg4 {[%emt 0:00:23]} 19. Rh1 {[%emt 0:02:26]} Kd7 {[%emt 0:08:03]} 20. Bd2 {[%emt 0:07:31]} c5 {[%emt 0:08:13]} 21. Rae1 {[%emt 0:07:53]} Ke6 {[%emt 0:02:43]} 22. a3 {[%emt 0:18:54]} Rd8 {[%emt 0:01:41]} 23. Bc3 {[%emt 0:01:35]} c6 {[%emt 0:02:53]} 24. Rd1 {[%emt 0:03:04]} Rd7 {[%emt 0:01:30]} 25. Rde1 {[%emt 0:05:01]} Rd8 {[%emt 0:00:22]} 26. Rd1 {[%emt 0:00:54]} Rd7 {[%emt 0:00:20]} 27. Rde1 {[%emt 0:01:01] Ke5} 1/2-1/2